fUSD/lending_fUSD_20250101
["ID","MTS","AMOUNT","RATE_DAILY","PERIOD"]
[347412075,1735774241184,-500.0,0.00010958,2]
[347412076,1735774241193,-500.0,0.00010958,2]
[347412077,1735774241202,-1117.32,0.00010958,2]
[347412078,1735774241211,-500.0,0.00010958,2]
[347412079,1735774241220,-539.26,0.00010958,2]
[347412080,1735774241229,-718.5,0.00010958,2]
[347412081,1735774241238,-3777.72,0.00010958,2]
[347412082,1735774241246,-975.35,0.00010958,2]
[347412083,1735774241256,-500.0,0.00010958,2]
[347412084,1735774241264,-500.0,0.00010958,2]
[347412085,1735774241274,-500.0,0.00010958,2]
[347412086,1735774241283,-500.0,0.00010958,2]
[347412087,1735774241292,-500.0,0.00010958,2]
[347412088,1735774241300,-500.0,0.00010958,2]
[347412089,1735774241310,-5051.76240058,0.00010958,2]
[347412090,1735774241325,-814.6,0.00010958,2]
[347412091,1735774241343,-333.58518724,0.00010958,2]
[347412092,1735774241373,-9687.67241218,0.00010958,2]
[347412093,1735774241383,-1277.06,0.00010958,2]
[347412094,1735774241392,-500.0,0.00010958,2]
[347412095,1735774241401,-500.0,0.00010958,2]
[347412096,1735774241410,-500.0,0.00010958,2]
[347412097,1735774241419,-500.0,0.00010958,2]
[347412098,1735774241428,-271.02561943,0.00010958,2]
[347412099,1735774241438,-1952.93,0.00010958,2]
[347412100,1735774241447,-500.0,0.00010958,2]
[347412101,1735774241456,-689.51,0.00010958,2]
[347412102,1735774241465,-500.0,0.00010958,2]
[347412103,1735774241474,-572.52,0.00010958,2]
[347412104,1735774241483,-6284.76977491,0.00010958,2]
[347412105,1735774241495,-464.57022509,0.00010958,2]
[347412106,1735774241504,-500.0,0.00010958,2]
[347412107,1735774241513,-500.0,0.00010958,2]
[347412108,1735774241522,-500.0,0.00010958,2]
[347412109,1735774241531,-500.0,0.00010958,2]
[347412110,1735774241539,-500.0,0.00010958,2]
[347412111,1735774241548,-500.0,0.00010958,2]
[347412112,1735774241557,-879.22,0.00010958,2]
[347412113,1735774241566,-500.0,0.00010958,2]
[347412114,1735774241577,-500.0,0.00010958,2]
[347412115,1735774241586,-2168.12,0.00010958,2]
[347412116,1735774241596,-500.0,0.00010958,2]
[347412117,1735774241605,-500.0,0.00010958,2]
[347412118,1735774241614,-500.0,0.00010958,2]
[347412119,1735774241627,-500.0,0.00010958,2]
[347412120,1735774241636,-500.0,0.00010958,2]
[347412121,1735774241645,-963.33,0.00010958,2]
[347412122,1735774241654,-500.0,0.00010958,2]
[347412123,1735774241664,-500.0,0.00010958,2]
[347412124,1735774241672,-873.63,0.00010958,2]
[347412125,1735774241681,-500.0,0.00010958,2]
[347412126,1735774241692,-500.0,0.00010958,2]
[347412127,1735774241702,-1421.03,0.00010958,2]
[347412128,1735774241711,-500.0,0.00010958,2]
[347412129,1735774241720,-500.0,0.00010958,2]
[347412130,1735774241728,-1943.61,0.00010958,2]
[347412131,1735774241737,-500.0,0.00010958,2]
[347412132,1735774241746,-500.0,0.00010958,2]
[347412133,1735774241755,-500.0,0.00010958,2]
[347412134,1735774241764,-521.7,0.00010958,2]
[347412135,1735774241773,-500.0,0.00010958,2]
[347412136,1735774241782,-500.0,0.00010958,2]
[347412137,1735774241790,-500.0,0.00010958,2]
[347412138,1735774241799,-500.0,0.00010958,2]
[347412139,1735774241808,-500.0,0.00010958,2]
[347412140,1735774241817,-500.0,0.00010958,2]
[347412141,1735774241827,-500.0,0.00010958,2]
[347412142,1735774241836,-500.0,0.00010958,2]
[347412143,1735774241844,-590.31,0.00010958,2]
[347412144,1735774241855,-956.35,0.00010958,2]
[347412145,1735774241864,-500.0,0.00010958,2]
[347412146,1735774241873,-763.41,0.00010958,2]
[347412147,1735774241882,-500.0,0.00010958,2]
[347412148,1735774241891,-500.0,0.00010958,2]
[347412149,1735774241900,-910.61,0.00010958,2]
[347412150,1735774241909,-994.95,0.00010958,2]
[347412151,1735774241918,-4535.63,0.00010958,2]
[347412152,1735774241927,-858.32,0.00010958,2]
[347412153,1735774241939,-3960.08,0.00010958,2]
[347412154,1735774241948,-500.0,0.00010958,2]
[347412155,1735774242196,-994.23,0.00010958,2]
[347412156,1735774242206,-9840.79,0.00010958,2]
[347412157,1735774242217,-500.0,0.00010958,2]
[347412158,1735774242226,-577.46,0.00010958,2]
[347412159,1735774242238,-500.0,0.00010958,2]
[347412160,1735774242247,-1411.41,0.00010958,2]
[347412161,1735774242256,-4339.73,0.00010958,2]
[347412162,1735774242266,-500.0,0.00010958,2]
[347412163,1735774242276,-527.86,0.00010958,2]
[347412164,1735774242285,-1069.71,0.00010958,2]
[347412165,1735774242294,-500.0,0.00010958,2]
[347412166,1735774242304,-856.05,0.00010958,2]
[347412167,1735774242313,-577.22,0.00010958,2]
[347412168,1735774242323,-500.0,0.00010958,2]
[347412169,1735774242332,-500.0,0.00010958,2]
[347412170,1735774242341,-1092.1,0.00010958,2]
[347412171,1735774242350,-500.0,0.00010958,2]
[347412172,1735774242359,-500.0,0.00010958,2]
[347412173,1735774242368,-806.9,0.00010958,2]
[347412174,1735774242378,-601.64,0.00010958,2]
[347412175,1735774242387,-500.0,0.00010958,2]
[347412176,1735774242396,-500.0,0.00010958,2]
[347412177,1735774242405,-500.0,0.00010958,2]
[347412178,1735774242414,-500.0,0.00010958,2]
[347412180,1735774242423,-500.0,0.00010958,2]
[347412182,1735774242432,-500.0,0.00010958,2]
[347412183,1735774242442,-500.0,0.00010958,2]
[347412184,1735774242451,-883.05,0.00010958,2]
[347412185,1735774242460,-500.0,0.00010958,2]
[347412186,1735774242469,-801.94,0.00010958,2]
[347412187,1735774242478,-500.0,0.00010958,2]
[347412188,1735774242487,-883.51,0.00010958,2]
[347412189,1735774242496,-500.0,0.00010958,2]
[347412190,1735774242505,-650.68,0.00010958,2]
[347412191,1735774242513,-500.0,0.00010958,2]
[347412192,1735774242522,-500.0,0.00010958,2]
[347412193,1735774242531,-647.6,0.00010958,2]
[347412194,1735774242540,-500.0,0.00010958,2]
[347412195,1735774242549,-500.0,0.00010958,2]
[347412196,1735774242558,-2305.75,0.00010958,2]
[347412197,1735774242568,-500.0,0.00010958,2]
[347412198,1735774242580,-500.0,0.00010958,2]
[347412199,1735774242589,-500.0,0.00010958,2]
[347412200,1735774242598,-500.0,0.00010958,2]
[347412201,1735774242607,-845.24,0.00010958,2]
[347412202,1735774242617,-708.89,0.00010958,2]
[347412203,1735774242627,-1367.46,0.00010958,2]
[347412204,1735774242635,-830.31,0.00010958,2]
[347412205,1735774242644,-500.0,0.00010958,2]
[347412206,1735774242653,-500.0,0.00010958,2]
[347412207,1735774242662,-500.0,0.00010958,2]
[347412208,1735774242671,-517.07,0.00010958,2]
[347412209,1735774242680,-1503.05,0.00010958,2]
[347412210,1735774242690,-953.47,0.00010958,2]
[347412211,1735774242699,-933.86,0.00010958,2]
[347412212,1735774242708,-500.0,0.00010958,2]
[347412213,1735774242717,-1149.34,0.00010958,2]
[347412214,1735774242726,-500.0,0.00010958,2]
[347412215,1735774242735,-1260.33,0.00010958,2]
[347412216,1735774242743,-690.09,0.00010958,2]
[347412217,1735774242753,-545.15053811,0.00010958,2]
[347412218,1735774242762,-500.0,0.00010958,2]
[347412219,1735774242771,-500.0,0.00010958,2]
[347412220,1735774242779,-500.0,0.00010958,2]
[347412221,1735774242788,-636.17,0.00010958,2]
[347412222,1735774242798,-1119.83,0.00010958,2]
[347412223,1735774242808,-500.0,0.00010958,2]
[347412224,1735774242819,-523.14,0.00010958,2]
[347412225,1735774242828,-530.85,0.00010958,2]
[347412226,1735774242837,-628.99,0.00010958,2]
[347412227,1735774242846,-500.0,0.00010958,2]
[347412228,1735774242855,-500.0,0.00010958,2]
[347412229,1735774242865,-1626.89,0.00010958,2]
[347412230,1735774242873,-500.0,0.00010958,2]
[347412231,1735774242883,-1582.97,0.00010958,2]
[347412232,1735774242892,-500.0,0.00010958,2]
[347412233,1735774242901,-500.0,0.00010958,2]
[347412234,1735774242911,-893.52,0.00010958,2]
[347412235,1735774242920,-1305.55,0.00010958,2]
[347412236,1735774242929,-500.0,0.00010958,2]
[347412237,1735774242939,-500.0,0.00010958,2]
[347412238,1735774242947,-858.46,0.00010958,2]
[347412239,1735774242956,-581.56,0.00010958,2]
[347412240,1735774242966,-337.13441015,0.00010958,2]
[347412241,1735774242974,-762.5,0.00010958,2]
[347412242,1735774242983,-500.0,0.00010958,2]
[347412243,1735774242992,-584.23,0.00010958,2]
[347412244,1735774243002,-500.0,0.00010958,2]
[347412245,1735774243012,-980.59,0.00010958,2]
[347412246,1735774243021,-500.0,0.00010958,2]
[347412247,1735774243030,-500.0,0.00010958,2]
[347412248,1735774243039,-500.0,0.00010958,2]
[347412249,1735774243047,-1271.32,0.00010958,2]
[347412250,1735774243056,-809.55,0.00010958,2]
[347412251,1735774243065,-1123.2,0.00010958,2]
[347412252,1735774243074,-523.76,0.00010958,2]
[347412255,1735774243084,-500.0,0.00010958,2]
[347412258,1735774243092,-500.0,0.00010958,2]
[347412261,1735774243102,-788.18,0.00010958,2]
[347412264,1735774243111,-846.02,0.00010958,2]
[347412266,1735774243120,-500.0,0.00010958,2]
[347412269,1735774243129,-500.0,0.00010958,2]
[347412271,1735774243138,-1189.72,0.00010958,2]
[347412273,1735774243149,-500.0,0.00010958,2]
[347412275,1735774243158,-557.87,0.00010958,2]
[347412277,1735774243167,-500.0,0.00010958,2]
[347412279,1735774243178,-1296.23,0.00010958,2]
[347412281,1735774243188,-541.36,0.00010958,2]
[347412283,1735774243201,-567.17,0.00010958,2]
[347412285,1735774243214,-500.0,0.00010958,2]
[347412287,1735774243224,-500.0,0.00010958,2]
[347412289,1735774243234,-1465.71,0.00010958,2]
[347412290,1735774243243,-716.3,0.00010958,2]
[347412291,1735774243252,-734.23,0.00010958,2]
[347412292,1735774243261,-500.0,0.00010958,2]
[347412293,1735774243270,-795.68,0.00010958,2]
[347412294,1735774243279,-500.0,0.00010958,2]
[347412295,1735774243288,-1050.2,0.00010958,2]
[347412296,1735774243297,-500.0,0.00010958,2]
[347412297,1735774243307,-1017.62,0.00010958,2]
[347412298,1735774243316,-1157.96,0.00010958,2]
[347412299,1735774243327,-500.0,0.00010958,2]
[347412300,1735774243336,-500.0,0.00010958,2]
[347412301,1735774243345,-500.0,0.00010958,2]
[347412302,1735774243354,-1027.25,0.00010958,2]
[347412303,1735774243365,-500.0,0.00010958,2]
[347412304,1735774243374,-500.0,0.00010958,2]
[347412305,1735774243383,-1097.22,0.00010958,2]
[347412306,1735774243392,-500.0,0.00010958,2]
[347412307,1735774243400,-500.0,0.00010958,2]
[347412308,1735774243409,-1134.58,0.00010958,2]
[347412309,1735774243418,-761.57,0.00010958,2]
[347412310,1735774243428,-500.0,0.00010958,2]
[347412311,1735774243437,-500.0,0.00010958,2]
[347412312,1735774243446,-500.0,0.00010958,2]
[347412313,1735774243455,-1344.81,0.00010958,2]
[347412314,1735774243465,-500.0,0.00010958,2]
[347412315,1735774243474,-500.0,0.00010958,2]
[347412316,1735774243483,-533.2,0.00010958,2]
[347412317,1735774243492,-500.0,0.00010958,2]
[347412318,1735774243502,-500.0,0.00010958,2]
[347412319,1735774243511,-1120.13,0.00010958,2]
[347412320,1735774243520,-500.0,0.00010958,2]
[347412321,1735774243529,-500.0,0.00010958,2]
[347412322,1735774243538,-1531.52,0.00010958,2]
[347412323,1735774243547,-500.0,0.00010958,2]
[347412324,1735774243556,-500.0,0.00010958,2]
[347412325,1735774243565,-500.0,0.00010958,2]
[347412326,1735774243575,-506.31,0.00010958,2]
[347412327,1735774243585,-500.0,0.00010958,2]
[347412328,1735774243594,-1173.87,0.00010958,2]
[347412329,1735774243603,-500.0,0.00010958,2]
[347412330,1735774243612,-778.65,0.00010958,2]
[347412331,1735774243623,-1091.34,0.00010958,2]
[347412332,1735774243632,-544.08,0.00010958,2]
[347412333,1735774243641,-500.0,0.00010958,2]
[347412334,1735774243652,-858.13,0.00010958,2]
[347412335,1735774243661,-500.0,0.00010958,2]
[347412336,1735774243670,-1938.11,0.00010958,2]
[347412337,1735774243679,-556.31,0.00010958,2]
[347412338,1735774243689,-835.66,0.00010958,2]
[347412339,1735774243697,-500.0,0.00010958,2]
[347412340,1735774243706,-500.0,0.00010958,2]
[347412341,1735774243715,-500.0,0.00010958,2]
[347412342,1735774243724,-957.34,0.00010958,2]
[347412343,1735774243733,-703.51,0.00010958,2]
[347412344,1735774243742,-1493.79,0.00010958,2]
[347412345,1735774243751,-500.0,0.00010958,2]
[347412346,1735774243760,-500.0,0.00010958,2]
[347412347,1735774243769,-826.25,0.00010958,2]
[347412348,1735774243779,-532.16,0.00010958,2]
[347412349,1735774243789,-500.0,0.00010958,2]
[347412350,1735774243800,-500.0,0.00010958,2]
[347412351,1735774243810,-500.0,0.00010958,2]
[347412352,1735774243821,-500.0,0.00010958,2]
[347412353,1735774243832,-500.0,0.00010958,2]
[347412354,1735774243841,-876.03,0.00010958,2]
[347412355,1735774243851,-1258.07,0.00010958,2]
[347412356,1735774243859,-500.0,0.00010958,2]
[347412357,1735774243869,-335.0458917,0.00010958,2]
[347412358,1735774243878,-500.0,0.00010958,2]
[347412359,1735774243887,-641.43,0.00010958,2]
[347412360,1735774243896,-500.0,0.00010958,2]
[347412361,1735774243905,-505.37,0.00010958,2]
[347412362,1735774243914,-1259.72,0.00010958,2]
[347412363,1735774243923,-500.0,0.00010958,2]
[347412364,1735774243933,-500.0,0.00010958,2]
[347412365,1735774243942,-656.17,0.00010958,2]
[347412366,1735774243951,-1363.67,0.00010958,2]
[347412367,1735774243960,-698.69,0.00010958,2]
[347412368,1735774243970,-500.0,0.00010958,2]
[347412369,1735774243978,-500.0,0.00010958,2]
[347412370,1735774243987,-500.0,0.00010958,2]
[347412371,1735774243996,-1463.64,0.00010958,2]
[347412372,1735774244005,-546.99,0.00010958,2]
[347412373,1735774244014,-500.0,0.00010958,2]
[347412374,1735774244023,-1467.25,0.00010958,2]
[347412375,1735774244031,-958.99,0.00010958,2]
[347412376,1735774244040,-500.0,0.00010958,2]
[347412377,1735774244049,-1042.42,0.00010958,2]
[347412378,1735774244058,-995.62,0.00010958,2]
[347412379,1735774244067,-993.76,0.00010958,2]
[347412380,1735774244076,-500.0,0.00010958,2]
[347412381,1735774244085,-859.05,0.00010958,2]
[347412382,1735774244094,-500.0,0.00010958,2]
[347412383,1735774244103,-777.39,0.00010958,2]
[347412384,1735774244112,-739.59,0.00010958,2]
[347412385,1735774244121,-500.0,0.00010958,2]
[347412386,1735774244130,-862.97,0.00010958,2]
[347412387,1735774244139,-1455.71,0.00010958,2]
[347412388,1735774244148,-1498.02,0.00010958,2]
[347412389,1735774244157,-586.23,0.00010958,2]
[347412390,1735774244166,-1754.75,0.00010958,2]
[347412391,1735774244175,-500.0,0.00010958,2]
[347412392,1735774244183,-500.0,0.00010958,2]
[347412393,1735774244192,-806.54,0.00010958,2]
[347412394,1735774244202,-910.1,0.00010958,2]
[347412395,1735774244210,-1003.28,0.00010958,2]
[347412396,1735774244219,-500.0,0.00010958,2]
[347412397,1735774244230,-1506.47,0.00010958,2]
[347412398,1735774244241,-901.63,0.00010958,2]
[347412399,1735774244252,-500.0,0.00010958,2]
[347412400,1735774244263,-1680.21,0.00010958,2]
[347412401,1735774244272,-797.82,0.00010958,2]
[347412402,1735774244281,-500.0,0.00010958,2]
[347412403,1735774244290,-307.88754682,0.00010958,2]
[347412404,1735774244784,-427.86245318,0.00010958,2]
[347412405,1735774244793,-666.99,0.00010958,2]
[347412406,1735774244802,-291.18317761,0.00010958,2]
[347412407,1735774244811,-956.56,0.00010958,2]
[347412408,1735774244820,-572.0,0.00010958,2]
[347412409,1735774244832,-500.0,0.00010958,2]
[347412410,1735774244843,-500.0,0.00010958,2]
[347412411,1735774244853,-628.71,0.00010958,2]
[347412412,1735774244862,-618.9,0.00010958,2]
[347412413,1735774244871,-500.0,0.00010958,2]
[347412414,1735774244880,-500.0,0.00010958,2]
[347412415,1735774244890,-1755.9,0.00010958,2]
[347412416,1735774244899,-576.1,0.00010958,2]
[347412417,1735774244907,-500.0,0.00010958,2]
[347412418,1735774244916,-500.0,0.00010958,2]
[347412419,1735774244925,-500.0,0.00010958,2]
[347412420,1735774244934,-500.0,0.00010958,2]
[347412421,1735774244943,-550.66,0.00010958,2]
[347412422,1735774244952,-500.0,0.00010958,2]
[347412423,1735774244961,-500.0,0.00010958,2]
[347412424,1735774244971,-757.41,0.00010958,2]
[347412425,1735774244979,-768.98,0.00010958,2]
[347412426,1735774244988,-1884.96,0.00010958,2]
[347412427,1735774244997,-500.0,0.00010958,2]
[347412428,1735774245006,-1479.23,0.00010958,2]
[347412429,1735774245015,-3033.0,0.00010958,2]
[347412430,1735774245024,-500.0,0.00010958,2]
[347412431,1735774245033,-2951.96,0.00010958,2]
[347412432,1735774245044,-510.17,0.00010958,2]
[347412433,1735774245055,-500.0,0.00010958,2]
[347412434,1735774245065,-500.0,0.00010958,2]
[347412435,1735774245074,-304.54291708,0.00010958,2]
[347412436,1735774245083,-1075.74,0.00010958,2]
[347412437,1735774245092,-500.0,0.00010958,2]
[347412438,1735774245100,-1827.0,0.00010958,2]
[347412439,1735774245110,-1169.16,0.00010958,2]
[347412440,1735774245120,-500.0,0.00010958,2]
[347412441,1735774245130,-1149.24,0.00010958,2]
[347412442,1735774245139,-500.0,0.00010958,2]
[347412443,1735774245148,-519.76,0.00010958,2]
[347412444,1735774245157,-500.0,0.00010958,2]
[347412445,1735774245167,-500.0,0.00010958,2]
[347412446,1735774245176,-3487.18,0.00010958,2]
[347412447,1735774245185,-1069.62,0.00010958,2]
[347412448,1735774245194,-2746.52,0.00010958,2]
[347412449,1735774245203,-1019.98,0.00010958,2]
[347412450,1735774245212,-500.0,0.00010958,2]
[347412451,1735774245221,-684.23,0.00010958,2]
[347412452,1735774245231,-9268.65,0.00010958,2]
[347412453,1735774245240,-918.0,0.00010958,2]
[347412454,1735774245249,-500.0,0.00010958,2]
[347412455,1735774245259,-547.0,0.00010958,2]
[347412456,1735774245270,-1007.93,0.00010958,2]
[347412457,1735774245279,-1328.9,0.00010958,2]
[347412458,1735774245288,-678.55,0.00010958,2]
[347412459,1735774245297,-1236.08,0.00010958,2]
[347412460,1735774245306,-500.0,0.00010958,2]
[347412461,1735774245315,-500.0,0.00010958,2]
[347412462,1735774245324,-1613.99,0.00010958,2]
[347412463,1735774245335,-500.0,0.00010958,2]
[347412464,1735774245344,-500.0,0.00010958,2]
[347412465,1735774245353,-1007.46,0.00010958,2]
[347412466,1735774245363,-728.92,0.00010958,2]
[347412467,1735774245372,-500.0,0.00010958,2]
[347412469,1735774245381,-954.29,0.00010958,2]
[347412470,1735774245390,-632.19,0.00010958,2]
[347412471,1735774245399,-1720.84,0.00010958,2]
[347412472,1735774245409,-1050.23,0.00010958,2]
[347412473,1735774245418,-2806.87,0.00010958,2]
[347412474,1735774245427,-500.0,0.00010958,2]
[347412475,1735774245438,-1118.66,0.00010958,2]
[347412476,1735774245447,-725.05,0.00010958,2]
[347412477,1735774245455,-2998.96,0.00010958,2]
[347412478,1735774245464,-625.22,0.00010958,2]
[347412479,1735774245473,-1376.11,0.00010958,2]
[347412480,1735774245734,-1053.02,0.00010958,2]
[347412481,1735774245744,-500.0,0.00010958,2]
[347412482,1735774245754,-5386.08,0.00010958,2]
[347412483,1735774245763,-1467.73,0.00010958,2]
[347412484,1735774245773,-500.0,0.00010958,2]
[347412485,1735774245782,-500.0,0.00010958,2]
[347412486,1735774245791,-623.71,0.00010958,2]
[347412487,1735774245800,-1499.5,0.00010958,2]
[347412488,1735774245809,-1031.4,0.00010958,2]
[347412489,1735774245817,-500.0,0.00010958,2]
[347412490,1735774245827,-1068.84,0.00010958,2]
[347412491,1735774245836,-1235.74,0.00010958,2]
[347412492,1735774245846,-593.83,0.00010958,2]
[347412493,1735774245855,-512.17,0.00010958,2]
[347412494,1735774245866,-1592.89,0.00010958,2]
[347412495,1735774245875,-500.0,0.00010958,2]
[347412496,1735774245884,-1341.47,0.00010958,2]
[347412497,1735774245893,-500.0,0.00010958,2]
[347412498,1735774245902,-722.83,0.00010958,2]
[347412499,1735774245911,-1579.04,0.00010958,2]
[347412500,1735774245920,-1798.66,0.00010958,2]
[347412501,1735774245929,-1242.64,0.00010958,2]
[347412502,1735774245938,-500.0,0.00010958,2]
[347412503,1735774245948,-2028.39,0.00010958,2]
[347412504,1735774245957,-500.0,0.00010958,2]
[347412505,1735774245967,-1475.34,0.00010958,2]
[347412506,1735774245976,-503.0930692,0.00010958,2]
[347412507,1735774245985,-500.0,0.00010958,2]
[347412508,1735774245995,-1461.66,0.00010958,2]
[347412509,1735774246004,-537.6,0.00010958,2]
[347412510,1735774246014,-622.33,0.00010958,2]
[347412511,1735774246023,-3120.28,0.00010958,2]
[347412512,1735774246032,-500.0,0.00010958,2]
[347412513,1735774246042,-614.12,0.00010958,2]
[347412514,1735774246051,-1213.02,0.00010958,2]
[347412515,1735774246060,-572.5,0.00010958,2]
[347412516,1735774246069,-1052.94,0.00010958,2]
[347412517,1735774246078,-3421.95,0.00010958,2]
[347412518,1735774246088,-3379.73,0.00010958,2]
[347412519,1735774246097,-1340.26,0.00010958,2]
[347412520,1735774246107,-1464.05,0.00010958,2]
[347412521,1735774246116,-500.0,0.00010958,2]
[347412522,1735774246126,-902.86,0.00010958,2]
[347412523,1735774246136,-1356.05,0.00010958,2]
[347412524,1735774246145,-1717.32,0.00010958,2]
[347412525,1735774246154,-871.29,0.00010958,2]
[347412526,1735774246164,-1699.33,0.00010958,2]
[347412527,1735774246172,-4718.4,0.00010958,2]
[347412528,1735774246182,-848.18,0.00010958,2]
[347412529,1735774246191,-500.0,0.00010958,2]
[347412530,1735774246201,-500.0,0.00010958,2]
[347412531,1735774246211,-547.62,0.00010958,2]
[347412532,1735774246221,-2511.37,0.00010958,2]
[347412533,1735774246230,-500.0,0.00010958,2]
[347412534,1735774246239,-1534.29,0.00010958,2]
[347412535,1735774246249,-500.0,0.00010958,2]
[347412536,1735774246258,-500.0,0.00010958,2]
[347412537,1735774246268,-883.99,0.00010958,2]
[347412538,1735774246277,-9678.78,0.00010958,2]
[347412539,1735774246286,-599.91,0.00010958,2]
[347412540,1735774246296,-1195.99,0.00010958,2]
[347412541,1735774246305,-1111.5,0.00010958,2]
[347412542,1735774246315,-3003.28,0.00010958,2]
[347412543,1735774246325,-3452.9,0.00010958,2]
[347412544,1735774246335,-1295.46,0.00010958,2]
[347412545,1735774246344,-665.96,0.00010958,2]
[347412546,1735774246354,-1730.9,0.00010958,2]
[347412547,1735774246363,-1044.91,0.00010958,2]
[347412548,1735774246372,-560.2,0.00010958,2]
[347412549,1735774246382,-742.68,0.00010958,2]
[347412550,1735774246391,-1425.22,0.00010958,2]
[347412551,1735774246401,-2632.89,0.00010958,2]
[347412552,1735774246411,-857.79,0.00010958,2]
[347412553,1735774246420,-500.0,0.00010958,2]
[347412554,1735774246430,-1061.75,0.00010958,2]
[347412555,1735774246440,-1238.32,0.00010958,2]
[347412556,1735774246449,-1315.55,0.00010958,2]
[347412557,1735774246458,-2780.1,0.00010958,2]
[347412558,1735774246467,-2199.4,0.00010958,2]
[347412559,1735774246477,-500.0,0.00010958,2]
[347412560,1735774246490,-633.12,0.00010958,2]
[347412561,1735774246499,-964.67,0.00010958,2]
[347412562,1735774246508,-608.1,0.00010958,2]
[347412563,1735774246518,-6572.6,0.00010958,2]
[347412564,1735774246527,-500.0,0.00010958,2]
[347412565,1735774246537,-500.0,0.00010958,2]
[347412566,1735774246547,-1281.97,0.00010958,2]
[347412567,1735774246556,-910.04,0.00010958,2]
[347412568,1735774246567,-2220.05,0.00010958,2]
[347412569,1735774246582,-1712.46,0.00010958,2]
[347412570,1735774246591,-587.88,0.00010958,2]
[347412571,1735774246601,-637.55,0.00010958,2]
[347412572,1735774246610,-1388.3,0.00010958,2]
[347412573,1735774246621,-6547.22,0.00010958,2]
[347412574,1735774246630,-593.33,0.00010958,2]
[347412575,1735774246639,-1027.54,0.00010958,2]
[347412576,1735774246649,-500.0,0.00010958,2]
[347412577,1735774246659,-500.0,0.00010958,2]
[347412578,1735774246668,-3100.57,0.00010958,2]
[347412579,1735774246678,-500.0,0.00010958,2]
[347412580,1735774246687,-500.0,0.00010958,2]
[347412581,1735774246697,-659.59,0.00010958,2]
[347412582,1735774246707,-500.0,0.00010958,2]
[347412583,1735774246717,-1240.52,0.00010958,2]
[347412584,1735774246726,-1638.59,0.00010958,2]
[347412585,1735774246735,-1141.66,0.00010958,2]
[347412586,1735774246746,-1181.85,0.00010958,2]
[347412587,1735774246755,-1678.02,0.00010958,2]
[347412588,1735774246765,-500.0,0.00010958,2]
[347412589,1735774246774,-3094.84,0.00010958,2]
[347412590,1735774246784,-500.0,0.00010958,2]
[347412591,1735774246793,-1079.225532,0.00010958,2]
[347412592,1735774246802,-1889.0,0.00010958,2]
[347412593,1735774246812,-3791.29,0.00010958,2]
[347412594,1735774246821,-2798.35,0.00010958,2]
[347412595,1735774246830,-500.0,0.00010958,2]
[347412596,1735774246839,-1920.98,0.00010958,2]
[347412597,1735774246849,-500.0,0.00010958,2]
[347412598,1735774246858,-1092.67,0.00010958,2]